[Event "Live Chess"]
[Site "Chess.com"]
[Date "2024.06.02"]
[Round "-"]
[White "booktrunk"]
[Black "Crowded_House"]
[Result "1/2-1/2"]
[WhiteElo "1504"]
[BlackElo "1701"]
[TimeControl "300"]
[EndTime "18:36:13 PDT"]
[Termination "Game drawn by repetition"]

1. d4 {[%clk 0:04:53.3]} 1... e6 {[%clk 0:04:59.3]} 2. Nc3 {[%clk 0:04:50.5]}
2... d5 {[%clk 0:04:58.3]} 3. Bf4 {[%clk 0:04:47.7]} 3... Bd6 {[%clk 0:04:56.5]}
4. Bxd6 {[%clk 0:04:43.7]} 4... Qxd6 {[%clk 0:04:55.3]} 5. Nf3 {[%clk
0:04:43.6]} 5... a6 {[%clk 0:04:51.8]} 6. e3 {[%clk 0:04:41.3]} 6... Nf6 {[%clk
0:04:50.1]} 7. Bd3 {[%clk 0:04:40.1]} 7... O-O {[%clk 0:04:48.4]} 8. O-O {[%clk
0:04:38.7]} 8... h6 {[%clk 0:04:47]} 9. a3 {[%clk 0:04:33.9]} 9... Nbd7 {[%clk
0:04:45.3]} 10. Be2 {[%clk 0:04:29.9]} 10... c5 {[%clk 0:04:39.9]} 11. dxc5
{[%clk 0:04:27.2]} 11... Nxc5 {[%clk 0:04:38.1]} 12. b4 {[%clk 0:04:17.7]} 12...
Nce4 {[%clk 0:04:34.3]} 13. Nxe4 {[%clk 0:04:16]} 13... Nxe4 {[%clk 0:04:33]}
14. Nd2 {[%clk 0:04:14.1]} 14... Nxd2 {[%clk 0:04:30.7]} 15. Qxd2 {[%clk
0:04:12.5]} 15... Qe7 {[%clk 0:04:21]} 16. c4 {[%clk 0:04:06.9]} 16... dxc4
{[%clk 0:04:16.9]} 17. Bxc4 {[%clk 0:04:06.8]} 17... Rd8 {[%clk 0:04:16.2]} 18.
Qe2 {[%clk 0:04:00.3]} 18... b5 {[%clk 0:04:14.4]} 19. Bb3 {[%clk 0:03:58.1]}
19... Bb7 {[%clk 0:04:13.1]} 20. Qg4 {[%clk 0:03:50]} 20... Rd3 {[%clk
0:04:03.3]} 21. Bc2 {[%clk 0:03:44]} 21... Rd2 {[%clk 0:03:44]} 22. Be4 {[%clk
0:03:41.1]} 22... Bxe4 {[%clk 0:03:41.1]} 23. Qxe4 {[%clk 0:03:38]} 23... Rad8
{[%clk 0:03:39.2]} 24. Qf3 {[%clk 0:03:29.7]} 24... Qd6 {[%clk 0:03:30.3]} 25.
g3 {[%clk 0:03:19.4]} 25... Qd5 {[%clk 0:03:27.5]} 26. Qxd5 {[%clk 0:03:16.8]}
26... R8xd5 {[%clk 0:03:26.8]} 27. Kg2 {[%clk 0:03:06.8]} 27... R2d3 {[%clk
0:03:20]} 28. Kf3 {[%clk 0:03:03.9]} 28... Rc3 {[%clk 0:03:18.8]} 29. Rfe1
{[%clk 0:03:01.2]} 29... Rdd3 {[%clk 0:03:17.4]} 30. Re2 {[%clk 0:02:58.6]}
30... Rxa3 {[%clk 0:03:14.3]} 31. Rxa3 {[%clk 0:02:57.6]} 31... Rxa3 {[%clk
0:03:12.8]} 32. Rb2 {[%clk 0:02:57.5]} 32... Rc3 {[%clk 0:03:07.1]} 33. Ke4
{[%clk 0:02:55.9]} 33... Kf8 {[%clk 0:02:55.1]} 34. Kd4 {[%clk 0:02:54.3]} 34...
Rc6 {[%clk 0:02:51.3]} 35. Ke5 {[%clk 0:02:53]} 35... Ke7 {[%clk 0:02:49.5]} 36.
f4 {[%clk 0:02:50.4]} 36... f6+ {[%clk 0:02:47.7]} 37. Ke4 {[%clk 0:02:48.9]}
37... g6 {[%clk 0:02:39.6]} 38. h4 {[%clk 0:02:46.3]} 38... f5+ {[%clk
0:02:28.3]} 39. Kf3 {[%clk 0:02:44.5]} 39... Rc4 {[%clk 0:02:23.9]} 40. g4
{[%clk 0:02:41]} 40... fxg4+ {[%clk 0:02:20.5]} 41. Kxg4 {[%clk 0:02:39.6]}
41... Kf6 {[%clk 0:02:17.5]} 42. Rb3 {[%clk 0:02:27.6]} 42... e5 {[%clk
0:02:10.3]} 43. Kf3 {[%clk 0:02:25.4]} 43... exf4 {[%clk 0:02:05.8]} 44. exf4
{[%clk 0:02:23.2]} 44... g5 {[%clk 0:02:03]} 45. fxg5+ {[%clk 0:02:21.1]} 45...
hxg5 {[%clk 0:02:01.9]} 46. hxg5+ {[%clk 0:02:19.7]} 46... Kxg5 {[%clk
0:02:01.1]} 47. Ke3 {[%clk 0:02:18.9]} 47... Kf5 {[%clk 0:01:58.8]} 48. Kd3
{[%clk 0:02:18.8]} 48... Rc6 {[%clk 0:01:56.6]} 49. Kd4 {[%clk 0:02:16.1]} 49...
Ke6 {[%clk 0:01:53.5]} 50. Kd3 {[%clk 0:02:14.2]} 50... Kd5 {[%clk 0:01:51.6]}
51. Ra3 {[%clk 0:02:10.8]} 51... Rb6 {[%clk 0:01:44.8]} 52. Kc3 {[%clk
0:02:08.4]} 52... Ke4 {[%clk 0:01:41.3]} 53. Kb3 {[%clk 0:02:05.7]} 53... Kd3
{[%clk 0:01:39.2]} 54. Ra1 {[%clk 0:02:04.3]} 54... Kd2 {[%clk 0:01:34.8]} 55.
Ra2+ {[%clk 0:02:02.4]} 55... Kd3 {[%clk 0:01:32.5]} 56. Ra1 {[%clk 0:02:00.4]}
56... Rc6 {[%clk 0:01:31.5]} 57. Rd1+ {[%clk 0:01:57.8]} 57... Ke4 {[%clk
0:01:29.6]} 58. Re1+ {[%clk 0:01:55.4]} 58... Kd3 {[%clk 0:01:26]} 59. Rd1+
{[%clk 0:01:53.8]} 59... Ke2 {[%clk 0:01:25.2]} 60. Ra1 {[%clk 0:01:52.2]} 60...
Rb6 {[%clk 0:01:23.8]} 61. Ra2+ {[%clk 0:01:50.3]} 61... Kd3 {[%clk 0:01:22.3]}
62. Ra1 {[%clk 0:01:49.1]} 1/2-1/2

[Event "Live Chess"]
[Site "Chess.com"]
[Date "2024.06.02"]
[Round "-"]
[White "oscalik"]
[Black "Tushinskiy"]
[Result "0-1"]
[WhiteElo "2261"]
[BlackElo "2268"]
[TimeControl "300"]
[EndTime "18:37:18 PDT"]
[Termination "Tushinskiy won on time"]

1. e4 {[%clk 0:04:57.7]} 1... e5 {[%clk 0:04:58.8]} 2. Nf3 {[%clk 0:04:55.9]}
2... d6 {[%clk 0:04:58.7]} 3. Nc3 {[%clk 0:04:53.6]} 3... Bg4 {[%clk 0:04:57.6]}
4. Bc4 {[%clk 0:04:49.2]} 4... Nf6 {[%clk 0:04:55.9]} 5. h3 {[%clk 0:04:47.2]}
5... Nbd7 {[%clk 0:04:55.3]} 6. hxg4 {[%clk 0:04:45.5]} 6... Nxg4 {[%clk
0:04:55.2]} 7. d4 {[%clk 0:04:43.9]} 7... Ngf6 {[%clk 0:04:54]} 8. dxe5 {[%clk
0:04:42.3]} 8... dxe5 {[%clk 0:04:53.9]} 9. Ng5 {[%clk 0:04:40.9]} 9... Bb4
{[%clk 0:04:52.9]} 10. Nxf7 {[%clk 0:04:39]} 10... Qe7 {[%clk 0:04:52.2]} 11.
Nxh8 {[%clk 0:04:37]} 11... O-O-O {[%clk 0:04:51.7]} 12. Bd2 {[%clk 0:04:31.9]}
12... Nb6 {[%clk 0:04:50.2]} 13. Bd3 {[%clk 0:04:24]} 13... Rxh8 {[%clk
0:04:48.3]} 14. Qf3 {[%clk 0:04:20.3]} 14... Kb8 {[%clk 0:04:45.9]} 15. O-O-O
{[%clk 0:04:18.6]} 15... a5 {[%clk 0:04:44.8]} 16. Kb1 {[%clk 0:04:15.5]} 16...
a4 {[%clk 0:04:42.2]} 17. Nd5 {[%clk 0:04:11.2]} 17... Nbxd5 {[%clk 0:04:40.1]}
18. exd5 {[%clk 0:04:09]} 18... e4 {[%clk 0:04:39.3]} 19. Bxb4 {[%clk
0:02:48.8]} 19... Qxb4 {[%clk 0:04:36.5]} 20. c3 {[%clk 0:02:48.2]} 20... Qe7
{[%clk 0:04:21]} 21. Rhe1 {[%clk 0:02:43.7]} 21... a3 {[%clk 0:04:06.2]} 22.
Bxe4 {[%clk 0:02:39.9]} 22... axb2 {[%clk 0:04:05.6]} 23. c4 {[%clk 0:02:25]}
23... Qc5 {[%clk 0:04:02.7]} 24. Qc3 {[%clk 0:01:51.9]} 24... Qxf2 {[%clk
0:03:57.5]} 25. Qxb2 {[%clk 0:01:50.2]} 25... Qc5 {[%clk 0:03:52.7]} 26. d6
{[%clk 0:01:44.3]} 26... c6 {[%clk 0:03:49.1]} 27. d7 {[%clk 0:01:39.7]} 27...
Rd8 {[%clk 0:03:45.9]} 28. Qd4 {[%clk 0:01:33.8]} 28... Qb4+ {[%clk 0:03:42.9]}
29. Ka1 {[%clk 0:01:32.8]} 29... Rxd7 {[%clk 0:03:40.9]} 30. Qe5+ {[%clk
0:01:30]} 30... Ka7 {[%clk 0:03:39.4]} 31. Rb1 {[%clk 0:01:10.6]} 31... Qd2
{[%clk 0:03:32.2]} 32. Qc5+ {[%clk 0:01:00.3]} 32... Kb8 {[%clk 0:03:31]} 33.
Qb4 {[%clk 0:00:49.1]} 33... Qd4+ {[%clk 0:03:24.6]} 34. Qb2 {[%clk 0:00:35.3]}
34... Nxe4 {[%clk 0:03:13.2]} 35. Qxd4 {[%clk 0:00:31.3]} 35... Rxd4 {[%clk
0:03:13.1]} 36. Rbc1 {[%clk 0:00:23.5]} 36... Kc7 {[%clk 0:03:09.9]} 37. Re2
{[%clk 0:00:22.9]} 37... Kd6 {[%clk 0:03:05.8]} 38. Rce1 {[%clk 0:00:22.4]}
38... Nc5 {[%clk 0:03:01.8]} 39. Re7 {[%clk 0:00:20.9]} 39... Rg4 {[%clk
0:02:51.7]} 40. R1e2 {[%clk 0:00:18.9]} 40... h5 {[%clk 0:02:48.3]} 41. Re8
{[%clk 0:00:18.2]} 41... Rxc4 {[%clk 0:02:37.2]} 42. Rd2+ {[%clk 0:00:16.9]}
42... Kc7 {[%clk 0:02:36]} 43. Re7+ {[%clk 0:00:16.8]} 43... Kb6 {[%clk
0:02:35.3]} 44. Rxg7 {[%clk 0:00:16.2]} 44... Na4 {[%clk 0:02:28]} 45. Kb1
{[%clk 0:00:13.7]} 45... Nc3+ {[%clk 0:02:26]} 46. Kb2 {[%clk 0:00:12]} 46...
Ne4 {[%clk 0:02:24.2]} 47. Rc2 {[%clk 0:00:10.7]} 47... Rb4+ {[%clk 0:02:23.5]}
48. Ka3 {[%clk 0:00:10.2]} 48... Rd4 {[%clk 0:02:21.6]} 49. Rb2+ {[%clk
0:00:09.8]} 49... Kc5 {[%clk 0:02:19.2]} 50. Rgxb7 {[%clk 0:00:09.7]} 50... Nd6
{[%clk 0:02:17.1]} 51. Rc2+ {[%clk 0:00:08.8]} 51... Nc4+ {[%clk 0:02:15.1]} 52.
Kb3 {[%clk 0:00:06.9]} 52... Rd3+ {[%clk 0:02:12.6]} 53. Rc3 {[%clk 0:00:06.3]}
53... Rxc3+ {[%clk 0:02:10.4]} 54. Kxc3 {[%clk 0:00:06.2]} 54... Ne3 {[%clk
0:02:08.6]} 55. Rh7 {[%clk 0:00:06.1]} 55... Nxg2 {[%clk 0:02:06.5]} 56. Rxh5+
{[%clk 0:00:05.6]} 56... Kb6 {[%clk 0:02:05.8]} 57. a4 {[%clk 0:00:04]} 57...
Nf4 {[%clk 0:02:04.7]} 58. Rf5 {[%clk 0:00:03.2]} 58... Nd5+ {[%clk 0:02:01.9]}
59. Rxd5 {[%clk 0:00:01.1]} 59... cxd5 {[%clk 0:02:00.8]} 60. Kd4 {[%clk
0:00:01]} 60... Ka5 {[%clk 0:02:00.1]} 0-1

[Event "Live Chess"]
[Site "Chess.com"]
[Date "2024.06.02"]
[Round "-"]
[White "asingardenof"]
[Black "MagnersCarlsberg2870"]
[Result "0-1"]
[WhiteElo "626"]
[BlackElo "1802"]
[TimeControl "300"]
[EndTime "18:37:58 PDT"]
[Termination "MagnersCarlsberg2870 won by resignation"]

1. d4 {[%clk 0:04:53.3]} 1... Nf6 {[%clk 0:04:58.5]} 2. c4 {[%clk 0:04:46.7]}
2... e5 {[%clk 0:04:57]} 3. Nf3 {[%clk 0:04:41.8]} 3... e4 {[%clk 0:04:50.6]} 4.
Ng5 {[%clk 0:04:36.4]} 4... h6 {[%clk 0:04:39]} 5. Nh3 {[%clk 0:04:31.3]} 5...
Bb4+ {[%clk 0:04:37.3]} 6. Bd2 {[%clk 0:04:28.9]} 6... Qe7 {[%clk 0:04:35.5]} 7.
e3 {[%clk 0:04:25.2]} 7... d5 {[%clk 0:04:30.7]} 8. c5 {[%clk 0:04:21.1]} 8...
Bxd2+ {[%clk 0:04:27.7]} 9. Nxd2 {[%clk 0:04:18.9]} 9... Bxh3 {[%clk 0:04:25.1]}
10. gxh3 {[%clk 0:04:15.1]} 10... b6 {[%clk 0:04:21.1]} 11. Rg1 {[%clk
0:04:07.9]} 11... g6 {[%clk 0:04:17.6]} 12. Nb3 {[%clk 0:04:01.1]} 12... Nbd7
{[%clk 0:04:08]} 13. Bb5 {[%clk 0:03:55.5]} 13... a6 {[%clk 0:04:05.3]} 14.
Bxd7+ {[%clk 0:03:53.8]} 14... Nxd7 {[%clk 0:04:00.3]} 15. c6 {[%clk 0:03:49.5]}
15... Nb8 {[%clk 0:03:59.3]} 16. Qg4 {[%clk 0:03:23.7]} 16... Nxc6 {[%clk
0:03:53.3]} 17. Rg3 {[%clk 0:03:10.8]} 17... Nb4 {[%clk 0:03:51.5]} 18. Nc1
{[%clk 0:03:01.3]} 18... Nc2+ {[%clk 0:03:49.5]} 19. Ke2 {[%clk 0:02:54.5]}
19... Nxa1 {[%clk 0:03:47.8]} 20. Kd2 {[%clk 0:02:43.2]} 20... Qb4+ {[%clk
0:03:44.1]} 21. Ke2 {[%clk 0:02:35.6]} 21... Qc4+ {[%clk 0:03:42.9]} 22. Kd2
{[%clk 0:02:32.9]} 22... Qc2+ {[%clk 0:03:41.6]} 23. Ke1 {[%clk 0:02:30.6]}
23... Qxc1+ {[%clk 0:03:40.5]} 0-1

[Event "Live Chess"]
[Site "Chess.com"]
[Date "2024.06.02"]
[Round "-"]
[White "KeithArkell"]
[Black "Duke_of_Bebington"]
[Result "1-0"]
[WhiteElo "2455"]
[BlackElo "1662"]
[TimeControl "300"]
[EndTime "18:38:29 PDT"]
[Termination "KeithArkell won on time"]

1. d4 {[%clk 0:04:57.3]} 1... d5 {[%clk 0:04:58.4]} 2. Nf3 {[%clk 0:04:56.4]}
2... Nf6 {[%clk 0:04:54.4]} 3. c4 {[%clk 0:04:55.6]} 3... c6 {[%clk 0:04:44.8]}
4. Nc3 {[%clk 0:04:54.2]} 4... dxc4 {[%clk 0:04:43.4]} 5. a4 {[%clk 0:04:52.7]}
5... Bf5 {[%clk 0:04:39.5]} 6. Nh4 {[%clk 0:04:51.8]} 6... Bg6 {[%clk
0:04:32.2]} 7. Nxg6 {[%clk 0:04:50.9]} 7... hxg6 {[%clk 0:04:32.1]} 8. a5 {[%clk
0:04:49.8]} 8... Nd5 {[%clk 0:04:16.6]} 9. e3 {[%clk 0:04:45.8]} 9... e6 {[%clk
0:04:11.9]} 10. Bxc4 {[%clk 0:04:44.8]} 10... Bb4 {[%clk 0:04:09.5]} 11. Bxd5
{[%clk 0:04:42.6]} 11... exd5 {[%clk 0:04:08.5]} 12. Qa4 {[%clk 0:04:39.3]}
12... Be7 {[%clk 0:04:01.1]} 13. Bd2 {[%clk 0:04:35.6]} 13... O-O {[%clk
0:04:00.3]} 14. O-O {[%clk 0:04:34.3]} 14... Nd7 {[%clk 0:03:59.1]} 15. a6
{[%clk 0:04:33.5]} 15... b5 {[%clk 0:03:54.7]} 16. Qc2 {[%clk 0:04:32]} 16...
Nb6 {[%clk 0:03:53.7]} 17. b3 {[%clk 0:04:30.6]} 17... Rc8 {[%clk 0:03:37.9]}
18. Ne2 {[%clk 0:04:29.5]} 18... c5 {[%clk 0:03:34.4]} 19. dxc5 {[%clk
0:04:28.8]} 19... Rxc5 {[%clk 0:03:32.6]} 20. Qd3 {[%clk 0:04:27.9]} 20... Qc7
{[%clk 0:03:16.8]} 21. Bb4 {[%clk 0:04:22.6]} 21... Rc6 {[%clk 0:03:15.3]} 22.
Bxe7 {[%clk 0:04:20.9]} 22... Qxe7 {[%clk 0:03:15.2]} 23. Qxb5 {[%clk
0:04:19.9]} 23... Rfc8 {[%clk 0:03:11.5]} 24. Nd4 {[%clk 0:04:17]} 24... Rc5
{[%clk 0:03:05.7]} 25. Qe2 {[%clk 0:04:15.6]} 25... Kh7 {[%clk 0:02:48.6]} 26.
h3 {[%clk 0:04:14.5]} 26... Rh8 {[%clk 0:02:47.4]} 27. Rfd1 {[%clk 0:04:13.3]}
27... Kg8 {[%clk 0:02:46.6]} 28. Rac1 {[%clk 0:04:11.9]} 28... Qc7 {[%clk
0:02:41.8]} 29. Rxc5 {[%clk 0:04:09.5]} 29... Qxc5 {[%clk 0:02:41.7]} 30. Qd2
{[%clk 0:04:03.3]} 30... Kh7 {[%clk 0:02:25.4]} 31. Rc1 {[%clk 0:04:02.2]} 31...
Qe7 {[%clk 0:02:16.8]} 32. Qe2 {[%clk 0:03:59.9]} 32... Rd8 {[%clk 0:02:13.9]}
33. Qg4 {[%clk 0:03:58.6]} 33... f5 {[%clk 0:02:08.7]} 34. Qf4 {[%clk
0:03:53.7]} 34... Rd7 {[%clk 0:02:03.6]} 35. Rc6 {[%clk 0:03:51.3]} 35... Nc8
{[%clk 0:01:58.1]} 36. Ne6 {[%clk 0:03:49.9]} 36... Kg8 {[%clk 0:01:49.1]} 37.
Rxc8+ {[%clk 0:03:48.2]} 1-0

[Event "Live Chess"]
[Site "Chess.com"]
[Date "2024.06.02"]
[Round "-"]
[White "Cruiseylee78"]
[Black "e4evr"]
[Result "1-0"]
[WhiteElo "1661"]
[BlackElo "2214"]
[TimeControl "300"]
[EndTime "18:38:48 PDT"]
[Termination "Cruiseylee78 won by checkmate"]

1. d4 {[%clk 0:04:58.9]} 1... f5 {[%clk 0:04:59.1]} 2. Bf4 {[%clk 0:04:52.2]}
2... Kf7 {[%clk 0:04:59]} 3. e3 {[%clk 0:04:51.9]} 3... g6 {[%clk 0:04:58]} 4.
Nf3 {[%clk 0:04:19]} 4... e6 {[%clk 0:04:56]} 5. d5 {[%clk 0:04:14.9]} 5... Qe8
{[%clk 0:04:53.9]} 6. Bxc7 {[%clk 0:04:07.9]} 6... h5 {[%clk 0:04:49]} 7. Nc3
{[%clk 0:04:03.9]} 7... a6 {[%clk 0:04:47.7]} 8. Ng5+ {[%clk 0:03:57.2]} 8...
Kg7 {[%clk 0:04:46.6]} 9. Na4 {[%clk 0:03:52.8]} 9... Kh6 {[%clk 0:04:44.2]} 10.
Nb6 {[%clk 0:03:49.3]} 10... Kxg5 {[%clk 0:04:43]} 11. Qd4 {[%clk 0:03:42.7]}
11... e5 {[%clk 0:04:15.6]} 12. Bxe5 {[%clk 0:03:36]} 12... Bb4+ {[%clk
0:04:13.1]} 13. Qxb4 {[%clk 0:03:31.3]} 13... Qxe5 {[%clk 0:04:11.9]} 14. f4+
{[%clk 0:03:27.3]} 14... Kh6 {[%clk 0:04:10.9]} 15. fxe5 {[%clk 0:03:22.4]}
15... d6 {[%clk 0:04:10.1]} 16. Qxd6 {[%clk 0:02:57.9]} 16... Ra7 {[%clk
0:04:05.2]} 17. Qxb8 {[%clk 0:02:52.8]} 17... Ne7 {[%clk 0:04:04.3]} 18. Qxa7
{[%clk 0:02:43.8]} 18... a5 {[%clk 0:04:03.5]} 19. Qxa5 {[%clk 0:02:38.3]} 19...
f4 {[%clk 0:04:01.1]} 20. h4 {[%clk 0:02:09.9]} 20... Bf5 {[%clk 0:03:48]} 21.
g4 {[%clk 0:01:47.6]} 21... fxg3 {[%clk 0:03:46.6]} 22. Qb4 {[%clk 0:01:43.4]}
22... Ng8 {[%clk 0:03:43]} 23. e4 {[%clk 0:01:40]} 23... Bg4 {[%clk 0:03:41.6]}
24. Qf8+ {[%clk 0:01:35.2]} 24... Kh7 {[%clk 0:03:40]} 25. Qe7+ {[%clk
0:01:30.6]} 25... Nxe7 {[%clk 0:03:38.8]} 26. Rg1 {[%clk 0:01:22.2]} 26... g5
{[%clk 0:03:35]} 27. Rxg3 {[%clk 0:01:16.5]} 27... gxh4 {[%clk 0:03:33.6]} 28.
Rc3 {[%clk 0:01:09.3]} 28... Ng6 {[%clk 0:03:31.2]} 29. e6 {[%clk 0:01:05.8]}
29... Rf8 {[%clk 0:03:22.3]} 30. Nd7 {[%clk 0:01:01.8]} 30... Rf4 {[%clk
0:03:20.1]} 31. Re3 {[%clk 0:00:57.6]} 31... h3 {[%clk 0:03:17]} 32. Bxh3 {[%clk
0:00:48.3]} 32... Bxh3 {[%clk 0:03:16.1]} 33. Rxh3 {[%clk 0:00:44.2]} 33...
Rxe4+ {[%clk 0:03:15.7]} 34. Kd1 {[%clk 0:00:39.6]} 34... Kh6 {[%clk 0:03:14.2]}
35. Rxh5+ {[%clk 0:00:32.1]} 35... Kg7 {[%clk 0:03:11.9]} 36. Kd2 {[%clk
0:00:26.2]} 36... Rd4+ {[%clk 0:03:10.5]} 37. Ke3 {[%clk 0:00:22.8]} 37... Rg4
{[%clk 0:03:06.4]} 38. Rah1 {[%clk 0:00:18.8]} 38... Rg3+ {[%clk 0:03:04.8]} 39.
Kf2 {[%clk 0:00:15.6]} 39... Rg4 {[%clk 0:02:45.6]} 40. Rh7+ {[%clk 0:00:12.7]}
40... Kg8 {[%clk 0:02:44.9]} 41. Nf6+ {[%clk 0:00:06.1]} 41... Kf8 {[%clk
0:02:44.3]} 42. Rf7# {[%clk 0:00:01.6]} 1-0

[Event "Live Chess"]
[Site "Chess.com"]
[Date "2024.06.02"]
[Round "-"]
[White "ACM42"]
[Black "MaksymYurii"]
[Result "1-0"]
[WhiteElo "2170"]
[BlackElo "970"]
[TimeControl "300"]
[EndTime "18:39:24 PDT"]
[Termination "ACM42 won by checkmate"]

1. e4 {[%clk 0:04:58.2]} 1... e5 {[%clk 0:04:58.5]} 2. Nf3 {[%clk 0:04:57]} 2...
Nc6 {[%clk 0:04:57.3]} 3. Bc4 {[%clk 0:04:56.5]} 3... d6 {[%clk 0:04:56.6]} 4.
O-O {[%clk 0:04:54.1]} 4... Bg4 {[%clk 0:04:55.8]} 5. h3 {[%clk 0:04:52.6]} 5...
Bxf3 {[%clk 0:04:54.9]} 6. Qxf3 {[%clk 0:04:51]} 6... Nf6 {[%clk 0:04:54.2]} 7.
c3 {[%clk 0:04:49.3]} 7... Be7 {[%clk 0:04:53.3]} 8. b4 {[%clk 0:04:47]} 8...
O-O {[%clk 0:04:48.5]} 9. b5 {[%clk 0:04:45.8]} 9... Na5 {[%clk 0:04:45.5]} 10.
Be2 {[%clk 0:04:41.9]} 10... c6 {[%clk 0:04:41.5]} 11. Na3 {[%clk 0:04:36.5]}
11... cxb5 {[%clk 0:04:38.2]} 12. Nxb5 {[%clk 0:04:32]} 12... a6 {[%clk
0:04:32.7]} 13. Na3 {[%clk 0:04:30]} 13... Nc6 {[%clk 0:04:31]} 14. Nc4 {[%clk
0:04:25.9]} 14... d5 {[%clk 0:04:23.5]} 15. exd5 {[%clk 0:04:18.5]} 15... Nxd5
{[%clk 0:04:19.1]} 16. Rb1 {[%clk 0:04:16.1]} 16... b5 {[%clk 0:04:11.8]} 17.
Ne3 {[%clk 0:04:13.8]} 17... Nf6 {[%clk 0:03:59.9]} 18. Qxc6 {[%clk 0:04:11.7]}
18... e4 {[%clk 0:03:41.5]} 19. a4 {[%clk 0:04:00.6]} 19... Bd6 {[%clk
0:03:06.8]} 20. Nf5 {[%clk 0:03:48.5]} 20... Bc7 {[%clk 0:02:49.2]} 21. axb5
{[%clk 0:03:33.2]} 21... Rc8 {[%clk 0:02:41.3]} 22. Qxa6 {[%clk 0:03:27.2]}
22... g6 {[%clk 0:02:31.6]} 23. Ng3 {[%clk 0:03:23.4]} 23... h5 {[%clk
0:02:27.3]} 24. h4 {[%clk 0:03:17.4]} 24... Bxg3 {[%clk 0:02:20.6]} 25. fxg3
{[%clk 0:03:15.1]} 25... Ng4 {[%clk 0:02:18.2]} 26. Bxg4 {[%clk 0:03:09.5]}
26... hxg4 {[%clk 0:02:16.4]} 27. b6 {[%clk 0:03:07.1]} 27... Qd3 {[%clk
0:01:48.1]} 28. Qxd3 {[%clk 0:03:04.8]} 28... exd3 {[%clk 0:01:46.4]} 29. b7
{[%clk 0:03:03.1]} 29... Rb8 {[%clk 0:01:44.6]} 30. Ba3 {[%clk 0:03:01.9]} 30...
Rfd8 {[%clk 0:01:39.8]} 31. Rf6 {[%clk 0:02:57.7]} 31... Rd7 {[%clk 0:01:36.5]}
32. Rfb6 {[%clk 0:02:56.3]} 32... f5 {[%clk 0:01:20.5]} 33. c4 {[%clk
0:02:53.8]} 33... Rf7 {[%clk 0:01:10.5]} 34. c5 {[%clk 0:02:51.8]} 34... f4
{[%clk 0:01:09.1]} 35. gxf4 {[%clk 0:02:50.2]} 35... g3 {[%clk 0:00:59.8]} 36.
Rxg6+ {[%clk 0:02:44.9]} 36... Kh7 {[%clk 0:00:57.8]} 37. Rxg3 {[%clk
0:02:42.6]} 37... Rfxb7 {[%clk 0:00:55.7]} 38. Rxb7+ {[%clk 0:02:40.8]} 38...
Rxb7 {[%clk 0:00:54.9]} 39. Rxd3 {[%clk 0:02:39.5]} 39... Rf7 {[%clk 0:00:47.7]}
40. c6 {[%clk 0:02:36.2]} 40... Rxf4 {[%clk 0:00:46]} 41. c7 {[%clk 0:02:35.2]}
41... Rc4 {[%clk 0:00:39.2]} 42. Rc3 {[%clk 0:02:34.1]} 42... Rxc7 {[%clk
0:00:35.1]} 43. Rxc7+ {[%clk 0:02:32.2]} 43... Kg6 {[%clk 0:00:34.7]} 44. g4
{[%clk 0:02:29.9]} 44... Kh6 {[%clk 0:00:33.1]} 45. Rc6+ {[%clk 0:02:27.6]}
45... Kg7 {[%clk 0:00:31.8]} 46. g5 {[%clk 0:02:25.4]} 46... Kf7 {[%clk
0:00:30.1]} 47. h5 {[%clk 0:02:24.1]} 47... Ke8 {[%clk 0:00:28.3]} 48. g6 {[%clk
0:02:21.1]} 48... Kd7 {[%clk 0:00:27.1]} 49. Rd6+ {[%clk 0:02:19.5]} 49... Ke7
{[%clk 0:00:23.8]} 50. h6 {[%clk 0:02:15.8]} 50... Kf8 {[%clk 0:00:21.3]} 51.
Rf6+ {[%clk 0:02:10.3]} 51... Ke8 {[%clk 0:00:13.7]} 52. g7 {[%clk 0:02:08]}
52... Kd7 {[%clk 0:00:10.1]} 53. g8=Q {[%clk 0:02:05.4]} 53... Kc7 {[%clk
0:00:08]} 54. Qg7+ {[%clk 0:02:04.8]} 54... Kd8 {[%clk 0:00:06.3]} 55. Rf8#
{[%clk 0:02:03.5]} 1-0